Cogmind - Beta 15 @@@ ROGUE MODE // 2025.06.13 @ 18:11:21 Player: Fleshy Vegetable Bird Result: Destroyed by 5G-RO4(R) with Subdweller Machine Gun Performance ------------- Evolutions (0) 0 Regions Visited (2) 400 Robots Destroyed (43) 215 Value Destroyed (764) 764 Prototype IDs (14) 280 Alien Tech Used (0) 0 Bonus (-45) -45 TOTAL SCORE: 1614 Bonus ------- Friendly Fire -45 Cogmind --------- Core Integrity 0/250 Matter 244/300 Energy 179/200 System Corruption 2% Temperature Cool (0) Movement Treading (260) Ox1 Location -10/Subcaves Parts ------- > --- POWER (1) -------- Subdweller Power Source > --- PROPULSION (2) --- Spiked Treads Subdweller Monowheel > --- UTILITY (2) ------ Medium Storage Unit Makeshift Light Armor Plating > --- WEAPON (2) ------- Assault Rifle Assault Rifle > --- INVENTORY (10) --- Subdweller Monowheel Subdweller Monowheel Improved Flight Unit Seismic Detector Subdweller Laser Subdweller Laser Assault Rifle Enhanced Flamer Peak State ------------ > --- POWER ------------ Subdweller Power Source > --- PROPULSION ------- Spiked Treads Subdweller Monowheel > --- UTILITY ---------- Medium Storage Unit Makeshift Light Armor Plating > --- WEAPON ----------- Assault Rifle Enhanced Flamer > --- INVENTORY -------- Subdweller Monowheel Subdweller Monowheel Improved Flight Unit Seismic Detector Subdweller Laser Assault Rifle Assault Rifle Assault Rifle EMP Blaster [Rating: 16] Favorites ----------- Power Light Ion Engine Engine Light Ion Engine Propulsion Wheel Treads Spiked Treads Wheel Wheel Utility Medium Storage Unit Device Seismic Detector Storage Medium Storage Unit Protection Makeshift Light Armor Plating Weapon Assault Rifle Energy Gun Riot Gun Ballistic Gun Assault Rifle Launcher Grenade Launcher Special Weapon Enhanced Flamer Build | -11 -10 -10 ------- Run | Yrd Mat Sub Slots Evolved . | . . . Power . | . . . Propulsion . | . . . Utility . | . . . Weapon . | . . . Parts Attached 32 | 7 10 15 Power 4 | 1 1 2 Engine 4 | 1 1 2 Core . | . . . Reactor . | . . . Propulsion 9 | 2 3 4 Treads 1 | . . 1 Leg . | . . . Wheel 8 | 2 3 3 Hover . | . . . Flight . | . . . Utility 5 | 2 2 1 Device 1 | 1 . . Storage 2 | 1 1 . Processor . | . . . Hackware . | . . . Protection 2 | . 1 1 Artifact . | . . . Weapon 14 | 2 4 8 Energy Gun 2 | 1 . 1 Energy Cannon . | . . . Ballistic Gun 8 | 1 4 3 Ballistic Cannon . | . . . Launcher 2 | . . 2 Special Weapon 2 | . . 2 Impact Weapon . | . . . Slashing Weapon . | . . . Piercing Weapon . | . . . Special Melee Weapon . | . . . Unidentified Prototypes . | . . . Parts Lost 6 | . . 6 Power 1 | . . 1 Propulsion . | . . . Utility . | . . . Weapon 5 | . . 5 Highest Loss Streak 2 | . . 2 To Critical Strikes . | . . . Average Backups 9 | 2 9 9 Power . | 1 1 . Propulsion 2 | . 2 2 Utility . | . . 1 Weapon 5 | 1 5 5 Tool/Special . | . . . Unused Backups 9 | . 3 6 Power . | . . . Propulsion 4 | . 1 3 Utility . | . . . Weapon 5 | . 2 3 Tool/Special . | . . . Average Slot Usage (%) 98 | . 100 96 Engine 12 | . 14 12 Treads 2 | . . 4 Wheel 24 | . 28 22 Device 2 | . 5 . Storage 14 | . 14 14 Protection 11 | . 8 14 Energy Gun 2 | . . 4 Ballistic Gun 19 | . 27 14 Launcher 3 | . . 5 Special Weapon 2 | . . 3 Peak Build Rating 16 | 7 8 16 Average Rating 10 | 4 7 12 On Entrance 5 | . 7 8 Naked Turns . | . . . Heaviest Build 26 | 11 20 26 Greatest Support 20 | 20 20 20 Greatest Overweight (x) 1 | . 1 1 Average Overweight (x) . | . . . Largest Inventory Capacity 10 | 8 10 10 Average Capacity 9 | 7 9 10 Most Carried 10 | 6 10 10 Average Carried 9 | 2 9 9 Final Capacity 10 | 8 10 10 Final Carried 10 | 5 10 8 Class Distribution -------------------- 80% | Mutant 11% | Scavenger-Mutant 8% | Derelict-Mutant Dominant Class ---------------- Mutant | -10/Materials Mutant | -10/Subcaves Resources | -11 -10 -10 ----------- Run | Yrd Mat Sub Matter Collected 1316 | 197 484 635 Remotely . | . . . Salvage Created 1331 | 172 660 499 Parts 119 | 15 63 41 Haulers Intercepted 2 | . 2 . Recyclers Shooed 1 | . 1 . Parts Field Recycled . | . . . Retrieved Matter . | . . . Parts Self-Destructed 6 | . . 6 Prevented . | . . . Kills | -11 -10 -10 ------- Run | Yrd Mat Sub Combat Hostiles Destroyed 23 | . 11 12 Guns 19 | . 11 8 AOE 3 | . . 3 Classes Destroyed 11 | 2 5 4 Worker 7 | . 7 . Tunneler 6 | 5 1 . Hauler 2 | . 2 . Recycler 2 | 1 1 . Watcher 3 | . 3 . Swarmer 9 | . 6 3 Grunt 5 | . 5 . Sentry 1 | . . 1 Artisan 1 | . . 1 Subdweller 8 | . . 8 Scientist 1 | . . 1 Best Kill Streak 8 | 6 8 3 Combat Bots Only 5 | . 5 3 Max Kills in Single Turn 3 | 1 2 3 Gunslinging . | . . . Exploded 2 | . . 2 Melee . | . . . Uniques/NPCs Destroyed . | . . . Combat | -11 -10 -10 -------- Run | Yrd Mat Sub Hostile Shots Fired 127 | . 44 83 Missed 36 | . 14 22 Hits 91 | . 30 61 Projectile 91 | . 30 61 Damage Taken 1598 | . 333 1265 Core 262 | . 75 187 Absorbed by Shields . | . . . Core Remaining (%) 100 | 100 . . Volleys Fired 125 | 13 47 65 Largest 2 | 2 2 2 Hottest 130 | 60 40 130 Shots Fired 232 | 26 94 112 Gun 200 | 26 94 80 Cannon . | . . . Launcher 28 | . . 28 Special 4 | . . 4 Kinetic 177 | 13 94 70 Thermal 17 | 13 . 4 Explosive 18 | . . 18 Electromagnetic 20 | . . 20 Robot Hit Streak 12 | 8 12 8 Robot Miss Streak 3 | 2 3 3 Penetration Max . | . . . Secondary Targets 1 | . . 1 Max Gunslinging Chain 1 | . . 1 Shots Hit Robots 145 | 17 63 65 Core Hits 67 | 8 32 27 Critical Kills . | . . . Critical Parts Destroyed 1 | . . 1 Critical Strikes 1 | . . 1 Destroy 1 | . . 1 Melee Attacks . | . . . Impact . | . . . Slashing . | . . . Piercing . | . . . Sneak Attacks . | . . . Combat Hostiles . | . . . Follow-up Attacks . | . . . Damage Inflicted 2065 | 174 840 1051 Guns 1767 | 174 840 753 Cannons . | . . . Explosions 277 | . . 277 Melee . | . . . Ramming . | . . . Kinetic 1518 | 67 840 611 Thermal 128 | 107 . 21 Explosive 107 | . . 107 Electromagnetic 312 | . . 312 Impact . | . . . Slashing . | . . . Piercing . | . . . Highest Corruption 2 | . 2 2 Average Corruption 2 | . 2 2 Corruption Purged . | . . . Corruption Blocked . | . . . Effects 30 | . 4 26 Message Errors 4 | . . 4 Matter Fused 7 | . 3 4 Heat Flow Errors 6 | . . 6 Energy Discharges 5 | . 1 4 Data Loss (minor) 6 | . . 6 Misfires 1 | . . 1 Alerts 1 | . . 1 Overload Shots . | . . . Overflow Damage . | . . . Projectiles . | . . . Explosions . | . . . Melee . | . . . Knockbacks . | . . . Impact . | . . . Kinetic . | . . . Secondary . | . . . Self-Inflicted Damage 98 | . . 98 Shots 8 | . . 8 Rammed . | . . . Targets Rammed . | . . . Kicked . | . . . Crushed . | . . . Highest Temperature 234 | 20 27 234 Average Temperature 40 | 9 7 89 Received Heat Transfer 348 | . 132 216 Siege Activations . | . . . Martial Activations . | . . . Shielding Activations . | . . . Robots Disrupted . | . . . Combat Hostiles . | . . . Robots Corrupted 1 | . . 1 Combat Hostiles 1 | . . 1 Parts Fried 1 | . . 1 Impact Corruptions . | . . . Robots Melted . | . . . Combat Hostiles . | . . . Parts Melted 1 | . . 1 Heat Transferred 410 | 250 . 160 Parts Sabotaged . | . . . Parts Stolen . | . . . Parts Stripped . | . . . Power Chain Reactions . | . . . Alert | -11 -10 -10 ------- Run | Yrd Mat Sub Maximum Alert Level . | . . . Low Security (%) 100 | 100 100 . Level 1 . | . . . Level 2 . | . . . Level 3 . | . . . Level 4 . | . . . Level 5 . | . . . High Security . | . . . Max Security . | . . . Peak Influence 189 | 20 189 . Initial 6 | . 6 . Average 74 | 5 80 . Influence Increases 557 | 30 437 90 Destroy 0b10 Robot/C 300 | . 220 80 Destroy 0b10 Robot/NC 100 | 30 70 . Destroy Leader 60 | . 50 10 Successful Hack 21 | . 21 . Destroy Structure 1 | . 1 . Partial Spotted 15 | . 15 . Lose Combat Pursuer 60 | . 60 . Influence Decreases 557 | 20 310 227 Entered New Map 70 | . 4 66 Time Decay 487 | 20 306 161 Squads Dispatched . | . . . Investigation . | . . . Extermination . | . . . Reinforcement . | . . . Assault . | . . . Garrison . | . . . Intercept . | . . . Searches Triggered . | . . . Construction Impeded . | . . . Haulers Reinforced . | . . . Active Scanning Responses . | . . . Cargo Convoy Interrupts . | . . . Stealth | -11 -10 -10 --------- Run | Yrd Mat Sub Distress Signals 3 | . 3 . Communications Jammed . | . . . Distress Signals . | . . . Times Spotted 34 | . 19 15 Peak Tracking Total 6 | . 6 3 Tactical Retreats 2 | . 2 . Traps | -11 -10 -10 ------- Run | Yrd Mat Sub Traps Triggered 1 | . 1 . Indirectly . | . . . Trap Hack Attempts . | . . . Triggered . | . . . Disarmed . | . . . Reprogrammed . | . . . Reused . | . . . Traps Extracted . | . . . Installed . | . . . Triggered . | . . . Machines | -11 -10 -10 ---------- Run | Yrd Mat Sub Machines Disabled 1 | . 1 . Max in Single Turn 1 | . 1 . Machines Repaired . | . . . Machines Dismantled . | . . . Machines Sabotaged . | . . . Overloaded Fab Kills . | . . . Hacking | -11 -10 -10 --------- Run | Yrd Mat Sub Machines Accessed 10 | . 8 2 Terminals 8 | . 8 . Fabricators . | . . . Repair Stations . | . . . Recycling Units . | . . . Scanalyzers . | . . . Garrison Access . | . . . Total Hacks 31 | . 29 2 Successful 20 | . 18 2 Failed 11 | . 11 . Catastrophic . | . . . Database Lockouts . | . . . Manual 23 | . 23 . Terminals 29 | . 29 . Fabricators . | . . . Repair Stations . | . . . Recycling Units . | . . . Scanalyzers . | . . . Garrison Access . | . . . Terminal Hacks 10 | . 8 2 Part Schematic 1 | . 1 . Robot Analysis 2 | . 2 . Prototype ID Bank 2 | . 2 . Open Door 1 | . . 1 Locate Traps 3 | . 3 . Proto ID Catalog 1 | . . 1 Fabricator Hacks . | . . . Repair Station Hacks . | . . . Recycling Unit Hacks . | . . . Scanalyzer . | . . . Garrison Access Hacks . | . . . Unauthorized Hacks 10 | . 10 . Terminals 10 | . 10 . Track 3 | . 3 . Botnet 6 | . 6 . Operators 1 | . 1 . Fabricators . | . . . Repair Stations . | . . . Recycling Units . | . . . Scanalyzers . | . . . Garrison Access . | . . . Data Cores Recovered . | . . . Used . | . . . Hacking Detections 8 | . 8 . Full Trace Events . | . . . Feedback Events . | . . . Feedback Blocked . | . . . Robot Schematics Acquired . | . . . Robots Built . | . . . Authchips . | . . . Time . | . . . Total Robot Build Rating . | . . . Part Schematics Acquired 1 | . 1 . Parts Built . | . . . Authchips . | . . . Time . | . . . Total Part Build Rating . | . . . Parts Repaired . | . . . Time . | . . . Parts Recycled . | . . . Recycled Matter . | . . . Retrieved Matter . | . . . Retrieved Components . | . . . Parts Scanalyzed . | . . . Part Schematics Acquired . | . . . Parts Damaged . | . . . Bothacking | -11 -10 -10 ------------ Run | Yrd Mat Sub Used RIF Installer . | . . . Robots Hacked . | . . . Non-combat . | . . . Combat . | . . . Robot Hacks Applied . | . . . Relay Couplers Released . | . . . Fabnet Peak Effective % . | . . . Robots Rewired . | . . . Allies Hacked . | . . . Hacks Repelled . | . . . Allies | -11 -10 -10 -------- Run | Yrd Mat Sub Total Allies . | . . . Largest Group . | . . . Highest-Rated Group . | . . . Highest-Rated Ally . | . . . Total Orders . | . . . Ally Attacks . | . . . Total Damage . | . . . Kills . | . . . Allies Corrupted . | . . . Allies Melted . | . . . Intel | -11 -10 -10 ------- Run | Yrd Mat Sub Active Infowar (turns) 474 | 4 470 . Seismic 474 | 4 470 . Robot Analysis Total 2 | . 2 . Derelict Logs Recovered 1 | . . 1 Drone Launches . | . . . Drone Recoveries . | . . . Exploration | -11 -10 -10 ------------- Run | Yrd Mat Sub Turns Passed 2891 | 98 1107 1686 Spaces Moved 2287 | 58 951 1278 Core 8 | 8 . . Treads 221 | . . 221 Legs . | . . . Wheels 2058 | 50 951 1057 Hover . | . . . Flight . | . . . Fastest Speed 50 | 50 80 80 Average Speed 99 | 75 83 111 Slowest Speed 260 | 80 95 260 Overloaded Moves . | . . . Propulsion Burnouts . | . . . Robots Hopped . | . . . Potential Cave-ins . | . . . Cave-ins Triggered . | . . . Exploration Rate (%) 53 | 5 95 61 Regions Visited 2 Branch Regions 1 Pre-discovered Areas . | . . . Known Exits Taken . | . . . Unknown Exits Taken 2 | 1 1 . Scrap Searched 10 | . . 10 Spaces Dug 7 | . . 7 Terrain Destroyed 103 | . . 103 Melee . | . . . Projectile . | . . . AOE 103 | . . 103 Terrain Rammed . | . . . Walls Destroyed . | . . . Machines Disabled . | . . . Actions | -11 -10 -10 --------- Run | Yrd Mat Sub Total 2681 | 87 1176 1418 Wait 181 | . 149 32 Move 2285 | 57 950 1278 Hop . | . . . Pick Up 25 | 10 8 7 Fast Attach 9 | 2 2 5 Attach 11 | 5 . 6 Detach . | . . . Swap 23 | . 8 15 Drop 22 | . 12 10 Fire 125 | 13 47 65 Melee . | . . . Ram . | . . . Kick . | . . . Crush . | . . . Escape Stasis . | . . . Rewire . | . . . Trap . | . . . Miscellaneous . | . . . Route ------- -11/Scrapyard -10/Materials (discovered 6 exits: [*Mat x3] / [*Min x2] / *Sub) -10/Subcaves (discovered 1 exit: [*Mat]) History --------- Turn | Location | Event 24 | -11/Scrapyard | Discovered new exit (range 16) 99 | -11/Scrapyard | Entered Materials 175 | -10/Materials | Discovered new exit (range 16) 316 | -10/Materials | Build established: Mutant 732 | -10/Materials | Discovered new exit (range 12) 777 | -10/Materials | Discovered new exit (range 7) 959 | -10/Materials | Discovered new exit (range 12) 990 | -10/Materials | Discovered new exit (range 16) 1189 | -10/Materials | Discovered new exit (range 10) 1206 | -10/Materials | Entered Subcaves 1207 | -10/Subcaves | Approached by a straggling Scientist 1310 | -10/Subcaves | Shifting Twisted Machinery released Sub. Optics 1314 | -10/Subcaves | Shifting Twisted Machinery released Sub. Monowheel 1378 | -10/Subcaves | Core integrity fell below 50% 1512 | -10/Subcaves | Build established: Scavenger-Mutant 1635 | -10/Subcaves | Disturbed a concealed Subdweller 1685 | -10/Subcaves | Shifting Twisted Machinery released Sub. Beam Cannon 1840 | -10/Subcaves | Learned Materials security intel 1845 | -10/Subcaves | Build established: Mutant 2149 | -10/Subcaves | Visited 4L-MR0's lab 2209 | -10/Subcaves | A swath of the cavern ceiling suddenly collapsed 2263 | -10/Subcaves | Disturbed a concealed Subdweller 2311 | -10/Subcaves | A swath of the cavern ceiling suddenly collapsed 2768 | -10/Subcaves | Discovered new exit (range 13) 2876 | -10/Subcaves | A Subdweller sparked back to life 2876 | -10/Subcaves | A Subdweller sparked back to life 2876 | -10/Subcaves | A Subdweller sparked back to life 2883 | -10/Subcaves | Core integrity fell below 20% 2892 | -10/Subcaves | Destroyed by 5G-RO4(R) with Subdweller Machine Gun Last Messages --------------- 02625_ SZ-R3S(R) destroyed. 02634_ Acquired 39 matter. 02636_ System corrupted: Component data lost. 02637_ Acquired Sub. Power Source. 02638_ Acquired 10 matter. 02644_ Acquired Sub. Laser. 02670_ System corrupted: Heat flow error (+274). 02742_ System corrupted: Matter fused (-5). 02768_ EXIT=FOUND 02824_ System corrupted: Component data lost. 02863_ System corrupted: Energy discharge (-45). 02876_ 1I-3VU(R) creaks and sparks as it begins to move. 02876_ 5G-RO4(R) creaks and sparks as it begins to move. 02876_ DE-FRW(R) creaks and sparks as it begins to move. 02877_ EMP Blaster destroyed. 02878_ Assault Rifle destroyed. 02882_ 5G-RO4(R) misfires. Map ----- +----------------------------------------------------+ | ?????????????????????????????????????????????????? | | ?????????????????????????????????????????????????? | | ?????????????????????????????????????????????????? | | ?????????????????????????????????????????????????? | | ?????????????????????????????????????????????????? | | ?????????????????????????????????????????????????? | | ?????????????????????????????????????????????????? | | ?????????????????????????????????????????????????? | | ?????????????????????????????????????????????????? | | ?????????????????????????????????????????????????? | | ?????????????????????????????????????????????????? | | ?????????????????????????????????????????????????? | | ?????????????????????????????????????????????????? | | ?????????????????????????????????????????????????? | | ????????####?????????????????????????????????????? | | #??????## ########??????????????????????????????? | | #??????# #??????????????????????????????? | | ##?????# #??????????????????????????????? | | ##????## ##?????????????????????????????? | | ##????###### ##????????????????????????????? | | ! ##????????## ##???????????????????????????? | | #?????????#### ####????????????????????????? | | ##???????????## ##????? ?????????????????? | | #?????????#### ###? ??? #????????? | | #??????#### # ## #????????? | | ####???# @ ????????? | | ## ##??# < < #????????? | | ## #??## # #????????? | | ## #???### <